Cogmind - Beta 14 @@@ ROGUE MODE // 2024.10.03 @ 05:46:04 Player: Spoing Result: Destroyed by S-43 Plague with Heavy Machine Gun Performance ------------- Evolutions (8) 4000 Regions Visited (12) 2400 Robots Destroyed (76) 380 Value Destroyed (2186) 2186 Prototype IDs (17) 340 Alien Tech Used (1) 200 Bonus (97) 97 TOTAL SCORE: 9603 Bonus ------- Follower Combat Kills 97 Cogmind --------- Core Integrity 0/1450 Matter 249/300 Energy 99/100 System Corruption 6% Temperature Cool (0) Movement Core (50) Location -2/Research Parts ------- > --- POWER (3) -------- (None) > --- PROPULSION (8) --- (None) > --- UTILITY (10) ----- Advanced Target Analyzer > --- WEAPON (2) ------- (None) > --- INVENTORY (5) ---- Advanced Signal Interpreter Advanced Terrain Scan Processor Authchip [Propulsion] Peak State ------------ > --- POWER ------------ Micro Antimatter Reactor Light Quantum Reactor > --- PROPULSION ------- Cesium-ion Thruster Cesium-ion Thruster Nuclear Pulse Thruster Nuclear Pulse Thruster Impulse Thruster Impulse Thruster Q-thruster > --- UTILITY ---------- Advanced Cooling System Medium Storage Unit Gravity Neutralizer Advanced Visual Processing Unit Improved Signal Interpreter Hacking Suite Hacking Suite Advanced Hacking Suite Improved System Shield > --- WEAPON ----------- Advanced Datajack Makeshift Sword > --- INVENTORY -------- Particle Reactor Light Quantum Reactor High-density Centrium Wheel Xenon Bombardment Thruster Advanced Thermal Generator Advanced Cooling System Stasis Canceller Layered Light Armor Plating Authchip [Propulsion] Component Analysis Suite [Rating: 108] Favorites ----------- Power Light Ion Engine Engine Light Ion Engine Power Core Light Nuclear Core Reactor Micro Antimatter Reactor Propulsion Cesium-ion Thruster Leg Aluminum Leg Wheel Compact Wheel Hover Unit Hover Unit Flight Unit Cesium-ion Thruster Utility Hacking Suite Device Sensor Array Storage Medium Storage Unit Processor Improved Signal Interpreter Hackware Hacking Suite Protection Propulsion Shielding Weapon Flak Gun Energy Gun Small Laser Energy Cannon Nova Cannon Ballistic Gun Flak Gun Launcher Rocket Launcher Impact Weapon Heavy Hammer Slashing Weapon Makeshift Sword Special Melee Weapon Advanced Datajack Build | -11 -10 -9 -8 -7 -6 -5 -4 -4 -4 -3 -3 -2 ------- Run | Yrd Mat Mat Mat Fac Fac Fac Fac Upp Upp Res Arm Res Slots Evolved 16 | . . 2 2 2 2 2 2 . . 2 . 2 Power 2 | . . . . . 1 . 1 . . . . . Propulsion 6 | . . 2 . 1 . 2 . . . . . 1 Utility 8 | . . . 2 1 1 . 1 . . 2 . 1 Weapon . | . . . . . . . . . . . . . Parts Attached 149 | 6 4 28 30 15 3 6 11 2 2 2 20 20 Power 28 | 1 . 2 3 2 1 2 7 . 1 1 4 4 Engine 6 | 1 . 2 1 . . . 2 . . . . . Core 13 | . . . 2 2 1 2 5 . 1 . . . Reactor 9 | . . . . . . . . . . 1 4 4 Propulsion 55 | 2 3 19 10 3 . 3 1 1 . . 8 5 Treads . | . . . . . . . . . . . . . Leg 12 | . . 4 6 1 . . . . . . . 1 Wheel 4 | 2 . 1 . . . . . . . . . 1 Hover 4 | . 3 . . . . . . . . . . 1 Flight 35 | . . 14 4 2 . 3 1 1 . . 8 2 Utility 33 | 1 1 . 9 5 1 1 2 1 . 1 6 5 Device 15 | . 1 . 2 2 . 1 1 1 . 1 3 3 Storage 3 | 1 . . 1 1 . . . . . . . . Processor 5 | . . . 3 . . . . . . . 1 1 Hackware 4 | . . . 1 1 . . 1 . . . 1 . Protection 6 | . . . 2 1 1 . . . . . 1 1 Artifact . | . . . . . . . . . . . . . Weapon 33 | 2 . 7 8 5 1 . 1 . 1 . 2 6 Energy Gun 11 | . . 4 4 . . . . . . . . 3 Energy Cannon 3 | . . . . . . . . . . . 1 2 Ballistic Gun 14 | 2 . 2 3 5 . . 1 . . . . 1 Ballistic Cannon . | . . . . . . . . . . . . . Launcher 2 | . . 1 1 . . . . . . . . . Special Weapon . | . . . . . . . . . . . . . Impact Weapon 1 | . . . . . 1 . . . . . . . Slashing Weapon 1 | . . . . . . . . . 1 . . . Piercing Weapon . | . . . . . . . . . . . . . Special Melee Weapon 1 | . . . . . . . . . . . 1 . Unidentified Prototypes 7 | . . . 1 . . . . 2 . 1 1 2 Parts Lost 60 | . 1 15 9 . . 1 2 4 2 . 10 16 Power 9 | . . 1 2 . . . 2 1 1 . . 2 Propulsion 25 | . 1 8 3 . . . . 3 1 . 7 2 Utility 10 | . . 1 . . . 1 . . . . 1 7 Weapon 16 | . . 5 4 . . . . . . . 2 5 Highest Loss Streak 7 | . 1 5 2 . . 1 2 4 2 . 6 7 To Critical Strikes . | . . . . . . . . . . . . . Average Slot Usage (%) 81 | . 91 90 75 91 93 89 95 80 74 57 76 27 Engine 5 | . 14 10 4 . 4 3 2 5 1 . . . Core 2 | . . . 4 7 6 7 12 1 3 . . . Leg 5 | . . 12 17 . . . . . . . . 1 Wheel 3 | . 24 2 . . . . . . . . . 1 Flight 19 | . . 21 1 37 33 31 35 26 22 19 26 2 Device 7 | . 7 10 4 7 6 4 5 10 10 4 8 . Storage 7 | . 14 11 9 6 6 5 5 5 5 4 4 1 Processor 5 | . . . 15 7 6 5 5 5 5 4 5 6 Hackware 6 | . . . . 12 13 11 13 15 15 14 16 10 Protection 1 | . . . 4 . 4 5 4 . . . . . Energy Gun 1 | . . 1 7 . . . . . . . . . Ballistic Gun 10 | . 28 19 6 8 6 5 5 5 5 4 1 . Peak Build Rating 108 | 6 7 17 34 41 42 60 78 79 65 63 108 70 Average Rating 31 | 4 6 9 19 37 40 46 68 62 63 54 80 36 On Entrance 37 | . 6 7 17 31 38 42 55 78 61 65 55 27 Naked Turns . | . . . . . . . . . . . . . Heaviest Build 48 | 11 12 14 28 25 25 30 37 36 28 18 48 30 Greatest Support 56 | 32 32 20 51 25 25 37 37 43 35 18 56 20 Greatest Overweight (x) 9 | . 1 4 7 1 . . . . . . 3 9 Average Overweight (x) . | . . . . . . . . . . . . . Largest Inventory Capacity 10 | 8 8 8 10 10 10 10 10 10 10 10 10 10 Average Capacity 9 | 7 8 8 10 9 10 10 10 10 10 10 10 7 Most Carried 10 | 4 8 8 10 10 10 10 10 8 8 10 10 10 Average Carried 8 | 1 6 7 9 8 9 9 8 6 7 9 9 6 Final Capacity 10 | 8 8 8 10 10 10 10 10 10 10 10 10 5 Final Carried 10 | 2 8 6 10 10 10 10 7 8 7 10 10 3 Class Distribution -------------------- 32% | Hacker-Sprinter 29% | Mutant 21% | Scavenger-Mutant 12% | Hacker-Mutant Dominant Class ---------------- Mutant | -10/Materials Scavenger-Mutant | -9/Materials Mutant | -8/Materials Hacker-Sprinter | -7/Factory Hacker-Sprinter | -6/Factory Hacker-Sprinter | -5/Factory Hacker-Sprinter | -4/Factory Hacker-Sprinter | -4/Upper Caves Hacker-Sprinter | -4/Upper Caves Hacker-Mutant | -3/Research Hacker-Sprinter | -3/Armory Hacker-Mutant | -2/Research Resources | -11 -10 -9 -8 -7 -6 -5 -4 -4 -4 -3 -3 -2 ----------- Run | Yrd Mat Mat Mat Fac Fac Fac Fac Upp Upp Res Arm Res Matter Collected 2340 | 230 151 692 456 . . 263 . 55 51 146 151 145 Remotely . | . . . . . . . . . . . . . Salvage Created 2560 | . 415 1165 706 . . 55 . . 51 . 32 136 Parts 165 | . 37 70 46 . . . . . . . 2 10 Haulers Intercepted 5 | . 1 2 2 . . . . . . . . . Recyclers Shooed 3 | . . 1 2 . . . . . . . . . Parts Field Recycled . | . . . . . . . . . . . . . Retrieved Matter . | . . . . . . . . . . . . . Parts Self-Destructed . | . . . . . . . . . . . . . Prevented 1 | . . . . . . . . 1 . . . . Kills | -11 -10 -9 -8 -7 -6 -5 -4 -4 -4 -3 -3 -2 ------- Run | Yrd Mat Mat Mat Fac Fac Fac Fac Upp Upp Res Arm Res Combat Hostiles Destroyed 50 | . 10 23 14 . . . . . . . . 3 Melee 1 | . . . . . . . . . . . . 1 Guns 37 | . 10 17 10 . . . . . . . . . Cannons 2 | . . . . . . . . . . . . 2 AOE 10 | . . 6 4 . . . . . . . . . Classes Destroyed 14 | . 5 6 2 . . . . . . . . 1 Worker 1 | . . 1 . . . . . . . . . . Builder 5 | . . 3 2 . . . . . . . . . Hauler 5 | . 1 2 2 . . . . . . . . . Recycler 2 | . 1 1 . . . . . . . . . . Mechanic 1 | . . 1 . . . . . . . . . . Operator 3 | . . 2 . . . . . . . . 1 . Watcher 9 | . 1 3 3 . . 2 . . . . . . Swarmer 10 | . 6 2 . . . . . . . . . 2 Grunt 31 | . 4 17 10 . . . . . . . . . Brawler 1 | . . 1 . . . . . . . . . . Duelist 1 | . . . 1 . . . . . . . . . Sentry 5 | . . 3 2 . . . . . . . . . Hunter 1 | . . . 1 . . . . . . . . . Programmer 1 | . . . . . . . . . . . . 1 Packrat 1 | . . . . . . . . . 1 . . . Best Kill Streak 13 | . 7 13 8 . . 1 . . . . 1 1 Combat Bots Only 8 | . 6 8 7 . . . . . . . . 1 Max Kills in Single Turn 4 | . 1 4 2 . . 1 . . 1 . 1 1 Gunslinging . | . . . . . . . . . . . . . Exploded 2 | . . 2 2 . . . . . . . . . Melee 1 | . . . . . . . . . . . . 1 Uniques/NPCs Destroyed . | . . . . . . . . . . . . . Combat | -11 -10 -9 -8 -7 -6 -5 -4 -4 -4 -3 -3 -2 -------- Run | Yrd Mat Mat Mat Fac Fac Fac Fac Upp Upp Res Arm Res Hostile Shots Fired 585 | . 33 154 97 . 1 46 8 4 13 . 75 154 Missed 213 | . 9 42 30 . 1 27 2 4 9 . 42 47 Damage Taken 7429 | . 277 1348 1211 . . 284 127 487 59 . 819 2817 Core 2774 | . 86 388 341 . . 63 43 93 12 . 279 1469 Absorbed by Shields 38 | . . . . . . . . . . . 38 . Redirected to Shielding 51 | . . . . . . 11 6 . . . 34 . Regen/Repaired (Parts) 136 | . . . . 119 17 . . . . . . . Core Remaining (%) 73 | 100 65 3 38 100 100 93 . . 87 . 78 . Volleys Fired 255 | . 31 132 71 . . . . . . 1 . 20 Largest 2 | . 2 2 2 . . . . . . 1 . 1 Hottest 130 | . 40 80 130 . . . . . . 35 . 113 Shots Fired 418 | . 62 240 95 . . . . . . 1 . 20 Gun 394 | . 62 232 90 . . . . . . 1 . 9 Cannon 11 | . . . . . . . . . . . . 11 Launcher 13 | . . 8 5 . . . . . . . . . Special . | . . . . . . . . . . . . . Kinetic 312 | . 62 204 40 . . . . . . 1 . 5 Thermal 89 | . . 28 50 . . . . . . . . 11 Explosive 13 | . . 8 5 . . . . . . . . . Electromagnetic 4 | . . . . . . . . . . . . 4 Robot Hit Streak 10 | . 7 10 10 . . . . . . . . 3 Robot Miss Streak 7 | . 3 6 7 . . . . . . 1 . 3 Penetration Max . | . . . . . . . . . . . . . Secondary Targets 2 | . 1 1 . . . . . . . . . . Max Gunslinging Chain 1 | . 1 1 . . . . . . . . . . Shots Hit Robots 298 | . 39 153 79 . . 2 . . 1 1 13 10 Core Hits 179 | . 22 72 76 . . . . . . . . 9 Critical Kills . | . . . . . . . . . . . . . Critical Parts Destroyed 1 | . . 1 . . . . . . . . . . Critical Strikes 1 | . . 1 . . . . . . . . . . Destroy 1 | . . 1 . . . . . . . . . . Melee Attacks 43 | . . . . . 10 3 . 2 1 1 26 . Impact 15 | . . . . . 10 3 . 2 . . . . Slashing 18 | . . . . . . . . . 1 1 16 . Piercing . | . . . . . . . . . . . . . Sneak Attacks 13 | . . . . . . . . . 1 . 12 . Combat Hostiles 1 | . . . . . . . . . . . 1 . Follow-up Attacks . | . . . . . . . . . . . . . Damage Inflicted 5350 | . 398 2507 1612 . . 101 . . 74 45 213 400 Guns 3284 | . 398 1655 1106 . . . . . . . . 125 Cannons 237 | . . . . . . . . . . . . 237 Explosions 1354 | . . 852 502 . . . . . . . . . Melee 433 | . . . . . . 101 . . 74 45 213 . Ramming 42 | . . . 4 . . . . . . . . 38 Kinetic 2495 | . 398 1427 583 . . . . . . . . 87 Thermal 988 | . . 228 523 . . . . . . . . 237 Explosive 1354 | . . 852 502 . . . . . . . . . Electromagnetic 38 | . . . . . . . . . . . . 38 Impact 101 | . . . . . . 101 . . . . . . Slashing 332 | . . . . . . . . . 74 45 213 . Piercing . | . . . . . . . . . . . . . Highest Corruption 6 | . . . 3 . 2 2 2 2 2 . . 6 Average Corruption 2 | . . . 3 . 2 2 1 2 2 . . 3 Corruption Purged . | . . . . . . . . . . . . . Corruption Blocked . | . . . . . . . . . . . . . Effects 12 | . . . 5 . 1 . . 2 . . . 4 Message Errors 6 | . . . 2 . 1 . . . . . . 3 Matter Fused 2 | . . . 1 . . . . 1 . . . . Heat Flow Errors 2 | . . . 1 . . . . 1 . . . . Energy Discharges 1 | . . . 1 . . . . . . . . . Data Loss (minor) 1 | . . . . . . . . . . . . 1 Overload Shots . | . . . . . . . . . . . . . Overflow Damage 193 | . . 19 10 . . 44 . . 57 . 50 13 Projectiles 13 | . . . . . . . . . . . . 13 Explosions 29 | . . 19 10 . . . . . . . . . Melee 151 | . . . . . . 44 . . 57 . 50 . Knockbacks . | . . . . . . . . . . . . . Impact . | . . . . . . . . . . . . . Kinetic . | . . . . . . . . . . . . . Secondary . | . . . . . . . . . . . . . Self-Inflicted Damage 61 | . . . 44 . . . . . . . . 17 Shots 1 | . . . 1 . . . . . . . . . Rammed 8 | . . . . . . . . . . . . 8 Targets Rammed 11 | . . . 3 . . . . . . . . 8 Kicked 3 | . . . 3 . . . . . . . . . Crushed . | . . . . . . . . . . . . . Highest Temperature 382 | . 12 36 292 . 4 . 8 324 . . 382 128 Average Temperature 51 | . 7 7 48 . 2 . 8 122 . . 124 51 Received Heat Transfer 1261 | . 72 543 495 . . . . . . . 61 90 Effects 2 | . . . . . . . . . . . 2 . Shutdowns 1 | . . . . . . . . . . . 1 . Damage (minor) 1 | . . . . . . . . . . . 1 . Siege Activations . | . . . . . . . . . . . . . Robots Corrupted 1 | . . . . . . 1 . . . . . . Combat Hostiles . | . . . . . . . . . . . . . Parts Fried 3 | . . . . . . 3 . . . . . . Impact Corruptions 2 | . . . . . . 2 . . . . . . Robots Melted . | . . . . . . . . . . . . . Combat Hostiles . | . . . . . . . . . . . . . Parts Melted 8 | . . 2 3 . . . . . . . . 3 Heat Transferred 1927 | . . 500 1242 . . . . . . . . 185 Parts Sabotaged 11 | . . . . . . . . . . . 11 . Parts Stolen . | . . . . . . . . . . . . . Parts Stripped . | . . . . . . . . . . . . . Power Chain Reactions . | . . . . . . . . . . . . . Alert | -11 -10 -9 -8 -7 -6 -5 -4 -4 -4 -3 -3 -2 ------- Run | Yrd Mat Mat Mat Fac Fac Fac Fac Upp Upp Res Arm Res Peak Influence 563 | . 311 392 396 229 120 563 275 . . 143 425 347 Initial 275 | . . 55 139 154 14 58 275 . . 128 74 105 Average 154 | . 163 116 256 144 66 174 270 . . 128 124 203 Maximum Alert Level 2 | . 1 1 1 1 . 2 1 . . . 2 1 Low Security (%) 68 | 100 52 91 31 54 100 70 . . . 100 87 51 Level 1 30 | . 47 8 68 45 . 11 100 . . . 10 48 Level 2 1 | . . . . . . 17 . . . . 1 . Level 3 . | . . . . . . . . . . . . . Level 4 . | . . . . . . . . . . . . . Level 5 . | . . . . . . . . . . . . . High Security . | . . . . . . . . . . . . . Max Security . | . . . . . . . . . . . . . Squads Dispatched 22 | . 2 5 1 2 1 5 1 . . . 2 3 Investigation 9 | . . 2 . 2 1 3 . . . . 1 . Extermination 1 | . . . . . . 1 . . . . . . Reinforcement 12 | . 2 3 1 . . 1 1 . . . 1 3 Assault . | . . . . . . . . . . . . . Garrison . | . . . . . . . . . . . . . Intercept . | . . . . . . . . . . . . . Searches Triggered . | . . . . . . . . . . . . . Construction Impeded 2 | . . 1 1 . . . . . . . . . Haulers Reinforced . | . . . . . . . . . . . . . Active Scanning Responses . | . . . . . . . . . . . . . Cargo Convoy Interrupts . | . . . . . . . . . . . . . Stealth | -11 -10 -9 -8 -7 -6 -5 -4 -4 -4 -3 -3 -2 --------- Run | Yrd Mat Mat Mat Fac Fac Fac Fac Upp Upp Res Arm Res Distress Signals 11 | . 3 2 2 . . 1 . . . . 3 . Communications Jammed . | . . . . . . . . . . . . . Distress Signals . | . . . . . . . . . . . . . Times Spotted 203 | . 20 41 26 4 5 26 2 2 6 2 52 17 Peak Tracking Total 26 | . 8 8 7 3 4 12 2 2 5 3 26 8 Tactical Retreats 30 | . 1 1 6 . 1 6 . 1 1 . 8 5 Traps | -11 -10 -9 -8 -7 -6 -5 -4 -4 -4 -3 -3 -2 ------- Run | Yrd Mat Mat Mat Fac Fac Fac Fac Upp Upp Res Arm Res Traps Triggered 7 | . 1 1 . . 1 1 . 1 . . 2 . Indirectly . | . . . . . . . . . . . . . Trap Hack Attempts . | . . . . . . . . . . . . . Triggered . | . . . . . . . . . . . . . Disarmed . | . . . . . . . . . . . . . Reprogrammed . | . . . . . . . . . . . . . Reused . | . . . . . . . . . . . . . Traps Extracted . | . . . . . . . . . . . . . Installed . | . . . . . . . . . . . . . Triggered 1 | . . . . . . . . 1 . . . . Machines | -11 -10 -9 -8 -7 -6 -5 -4 -4 -4 -3 -3 -2 ---------- Run | Yrd Mat Mat Mat Fac Fac Fac Fac Upp Upp Res Arm Res Machines Disabled 6 | . . . . . . . . 1 . . 5 . Max in Single Turn 1 | . . . . . . . . 1 . . 1 . Garrison Access 1 | . . . 1 . . . . . . . . . Machines Repaired . | . . . . . . . . . . . . . Machines Dismantled . | . . . . . . . . . . . . . Machines Sabotaged . | . . . . . . . . . . . . . Overloaded Fab Kills . | . . . . . . . . . . . . . Hacking | -11 -10 -9 -8 -7 -6 -5 -4 -4 -4 -3 -3 -2 --------- Run | Yrd Mat Mat Mat Fac Fac Fac Fac Upp Upp Res Arm Res Machines Accessed 39 | . 2 7 3 7 3 6 2 3 . . 5 1 Terminals 27 | . 2 5 2 5 2 4 1 1 . . 4 1 Fabricators 2 | . . . . 1 . . . . . . 1 . Repair Stations 2 | . . . . 1 1 . . . . . . . Recycling Units 3 | . . . . . . 2 1 . . . . . Scanalyzers 2 | . . 2 . . . . . . . . . . Garrison Access 1 | . . . 1 . . . . . . . . . Total Hacks 103 | . 3 18 9 21 7 19 5 3 . . 13 5 Successful 54 | . 1 4 2 12 4 11 4 3 . . 10 3 Failed 49 | . 2 14 7 9 3 8 1 . . . 3 2 Catastrophic 14 | . 2 5 1 2 1 2 . . . . 1 . Database Lockouts . | . . . . . . . . . . . . . Manual 42 | . 2 9 6 8 2 11 . . . . 3 1 Terminals 74 | . 3 11 7 16 4 13 3 1 . . 11 5 Fabricators 4 | . . . . 2 . . . . . . 2 . Repair Stations 6 | . . . . 3 3 . . . . . . . Recycling Units 8 | . . . . . . 6 2 . . . . . Scanalyzers 7 | . . 7 . . . . . . . . . . Garrison Access 2 | . . . 2 . . . . . . . . . Terminal Hacks 34 | . 1 . 1 8 1 7 2 3 . . 8 3 Record 6 | . . . . 2 . . 2 2 . . . . Prototype ID Bank 3 | . . . . 1 1 . . . . . . 1 Open Door 2 | . . . . . . . . 1 . . 1 . Level Access Points 2 | . . . . 1 . . . . . . 1 . Branch Access Points 3 | . . . . 1 . 1 . . . . . 1 Terminal Index 2 | . . . . . . 1 . . . . 1 . Fabricator Index 2 | . . . . 1 . 1 . . . . . . Recycling Unit Index 1 | . . . . . . 1 . . . . . . Alert Level 4 | . . . 1 1 . 1 . . . . 1 . Unreport Threat 1 | . . . . . . . . . . . 1 . Locate Traps 4 | . 1 . . 1 . . . . . . 1 1 Recall Investigation 1 | . . . . . . 1 . . . . . . Recall Reinforcements 1 | . . . . . . . . . . . 1 . Zone Layout 2 | . . . . . . 1 . . . . 1 . Fabricator Hacks 4 | . . . . 2 . . . . . . 2 . Load Schematic 2 | . . . . 1 . . . . . . 1 . Build 2 | . . . . 1 . . . . . . 1 . Repair Station Hacks 5 | . . . . 2 3 . . . . . . . Scan Component 2 | . . . . 1 1 . . . . . . . Repair 2 | . . . . 1 1 . . . . . . . Refit 1 | . . . . . 1 . . . . . . . Recycling Unit Hacks 6 | . . . . . . 4 2 . . . . . Process 3 | . . . . . . 2 1 . . . . . Retrieve Matter 3 | . . . . . . 2 1 . . . . . Scanalyzer 4 | . . 4 . . . . . . . . . . Insert Component 2 | . . 2 . . . . . . . . . . Analyze 2 | . . 2 . . . . . . . . . . Garrison Access Hacks 1 | . . . 1 . . . . . . . . . Seal Access 1 | . . . 1 . . . . . . . . . Unauthorized Hacks . | . . . . . . . . . . . . . Terminals . | . . . . . . . . . . . . . Fabricators . | . . . . . . . . . . . . . Repair Stations . | . . . . . . . . . . . . . Recycling Units . | . . . . . . . . . . . . . Scanalyzers . | . . . . . . . . . . . . . Garrison Access . | . . . . . . . . . . . . . Data Cores Recovered 1 | . . . . . . . . . . . 1 . Used . | . . . . . . . . . . . . . Hacking Detections 34 | . 2 7 3 7 2 6 2 . . . 4 1 Full Trace Events 9 | . . 2 . 2 1 3 . . . . 1 . Feedback Events . | . . . . . . . . . . . . . Feedback Blocked . | . . . . . . . . . . . . . Robot Schematics Acquired . | . . . . . . . . . . . . . Robots Built . | . . . . . . . . . . . . . Authchips . | . . . . . . . . . . . . . Time . | . . . . . . . . . . . . . Total Robot Build Rating . | . . . . . . . . . . . . . Part Schematics Acquired 2 | . . 2 . . . . . . . . . . Parts Built 4 | . . . . 2 . . . . . . 2 . Authchips . | . . . . . . . . . . . . . Time 72 | . . . . 36 . . . . . . 36 . Total Part Build Rating 12 | . . . . 6 . . . . . . 6 . Parts Repaired 2 | . . . . 1 1 . . . . . . . Time 51 | . . . . 13 38 . . . . . . . Parts Recycled . | . . . . . . . . . . . . . Recycled Matter 239 | . . . . . . 238 1 . . . . . Retrieved Matter 1 | . . . . . . . 1 . . . . . Retrieved Components . | . . . . . . . . . . . . . Parts Scanalyzed 2 | . . 2 . . . . . . . . . . Part Schematics Acquired 2 | . . 2 . . . . . . . . . . Parts Damaged . | . . . . . . . . . . . . . Bothacking | -11 -10 -9 -8 -7 -6 -5 -4 -4 -4 -3 -3 -2 ------------ Run | Yrd Mat Mat Mat Fac Fac Fac Fac Upp Upp Res Arm Res Used RIF Installer . | . . . . . . . . . . . . . Robots Hacked . | . . . . . . . . . . . . . Non-combat . | . . . . . . . . . . . . . Combat . | . . . . . . . . . . . . . Robot Hacks Applied . | . . . . . . . . . . . . . Relay Couplers Released . | . . . . . . . . . . . . . Fabnet Peak Effective % . | . . . . . . . . . . . . . Robots Rewired 7 | . . . . . . . . . . . 7 . Allies Hacked 1 | . . . . . . . . . . . 1 . Hacks Repelled . | . . . . . . . . . . . . . Allies | -11 -10 -9 -8 -7 -6 -5 -4 -4 -4 -3 -3 -2 -------- Run | Yrd Mat Mat Mat Fac Fac Fac Fac Upp Upp Res Arm Res Total Allies 7 | . . . . . . . . . . . 7 . Largest Group 7 | . . . . . . . . . . . 7 . Highest-Rated Group 386 | . . . . . . . . . . . 386 . Highest-Rated Ally 65 | . . . . . . . . . . . 65 . Total Orders . | . . . . . . . . . . . . . Ally Attacks 16 | . . . . . . . . . . . 16 . Total Damage 419 | . . . . . . . . . . . 419 . Kills 2 | . . . . . . . . . . . 2 . Allies Corrupted 1 | . . . . . . . . . . . 1 . Allies Melted . | . . . . . . . . . . . . . Intel | -11 -10 -9 -8 -7 -6 -5 -4 -4 -4 -3 -3 -2 ------- Run | Yrd Mat Mat Mat Fac Fac Fac Fac Upp Upp Res Arm Res Robot Analysis Total . | . . . . . . . . . . . . . Derelict Logs Recovered . | . . . . . . . . . . . . . Drone Launches . | . . . . . . . . . . . . . Drone Recoveries . | . . . . . . . . . . . . . Exploration | -11 -10 -9 -8 -7 -6 -5 -4 -4 -4 -3 -3 -2 ------------- Run | Yrd Mat Mat Mat Fac Fac Fac Fac Upp Upp Res Arm Res Turns Passed 4827 | 74 460 1238 650 576 285 255 91 279 24 84 448 363 Spaces Moved 6716 | 67 345 587 305 1132 530 1032 335 714 67 213 988 401 Core 142 | 12 . 5 8 . . . . . . . 1 116 Treads . | . . . . . . . . . . . . . Legs 513 | . . 267 246 . . . . . . . . . Wheels 588 | 55 299 62 . . . . . . . . . 172 Hover 64 | . 46 5 . . . . . . . . . 13 Flight 5409 | . . 248 51 1132 530 1032 335 714 67 213 987 100 Fastest Speed 18 | 50 56 26 26 23 23 18 18 18 26 34 19 34 Average Speed 41 | 91 94 87 131 26 23 21 18 26 28 34 24 68 Slowest Speed 500 | 100 125 250 400 106 26 23 20 28 29 34 200 500 Overloaded Moves 5 | . . . . . . . . . . . . 5 Propulsion Burnouts . | . . . . . . . . . . . . . Robots Hopped 28 | . . . . 10 2 6 2 . . 1 2 5 Cave-ins Triggered . | . . . . . . . . . . . . . Exploration Rate (%) 26 | 4 48 38 26 25 17 25 6 74 15 7 53 12 Regions Visited 12 Branch Regions 3 Pre-discovered Areas . | . . . . . . . . . . . . . Known Exits Taken 6 | . . . 1 1 1 1 1 . . . 1 . Unknown Exits Taken 6 | 1 1 1 . . . . . 1 1 1 . . Scrap Searched . | . . . . . . . . . . . . . Spaces Dug 15 | . . . . . 8 1 . . . . 6 . Terrain Destroyed 116 | . . 45 51 . 8 1 . . . . 6 5 Melee 15 | . . . . . 8 1 . . . . 6 . Projectile 5 | . . . . . . . . . . . . 5 AOE 96 | . . 45 51 . . . . . . . . . Terrain Rammed . | . . . . . . . . . . . . . Walls Destroyed . | . . . . . . . . . . . . . Machines Disabled . | . . . . . . . . . . . . . Actions | -11 -10 -9 -8 -7 -6 -5 -4 -4 -4 -3 -3 -2 --------- Run | Yrd Mat Mat Mat Fac Fac Fac Fac Upp Upp Res Arm Res Total 8265 | 80 426 1084 456 1395 668 1054 360 802 69 224 1182 465 Wait 951 | . 25 320 17 235 123 6 12 81 . . 125 7 Move 6649 | 66 344 586 304 1111 525 1019 330 713 66 210 983 392 Hop 27 | . . . . 10 2 6 2 . . 1 2 4 Pick Up 91 | 8 13 8 18 11 3 7 3 2 . 3 10 5 Fast Attach 46 | . 3 14 7 2 . . . . . . 10 10 Attach 73 | 6 . 8 14 7 3 4 7 2 1 2 9 10 Detach 29 | . . 2 6 6 1 2 1 1 . 4 3 3 Swap 31 | . 1 6 9 6 . 2 4 1 1 . 1 . Drop 51 | . 9 8 7 7 1 5 1 . . 2 5 6 Fire 255 | . 31 132 71 . . . . . . 1 . 20 Melee 43 | . . . . . 10 3 . 2 1 1 26 . Ram 8 | . . . . . . . . . . . . 8 Kick 3 | . . . 3 . . . . . . . . . Crush . | . . . . . . . . . . . . . Escape Stasis 8 | . . . . . . . . . . . 8 . Rewire . | . . . . . . . . . . . . . Trap . | . . . . . . . . . . . . . Miscellaneous . | . . . . . . . . . . . . . Route ------- -11/Scrapyard -10/Materials -9/Materials -8/Materials -7/Factory (discovered 6 exits: *Fac x4 / Low x2) -6/Factory -5/Factory (discovered 3 exits: *Fac / Upp x2) -4/Factory -4/Upper Caves -4/Upper Caves -3/Research -3/Armory (discovered 2 exits: *Res x2) -2/Research (discovered 2 exits: Qua x2) History --------- Turn | Location | Event 10 | -11/Scrapyard | Discovered new exit (range 16) 75 | -11/Scrapyard | Entered Materials 334 | -10/Materials | Build established: Mutant 362 | -10/Materials | Discovered new exit (range 13) 535 | -10/Materials | Entered another Materials area 535 | -9/Materials | Evolved 2 slots: Propulsion x2 996 | -9/Materials | Build established: Scavenger-Mutant 1644 | -9/Materials | Lost 5 parts (3n2w) 1704 | -9/Materials | Core integrity fell below 50% 1725 | -9/Materials | Destroyed 8 combat bots 1732 | -9/Materials | Build established: Mutant 1738 | -9/Materials | Lost 5 parts (1p1n1u2w) 1739 | -9/Materials | Core integrity fell below 20% 1769 | -9/Materials | Discovered new exit (range 16) 1773 | -9/Materials | Entered another Materials area 1773 | -8/Materials | Evolved 2 slots: Utility x2 2016 | -8/Materials | Destroyed 7 combat bots 2152 | -8/Materials | Core integrity fell below 50% 2406 | -8/Materials | Discovered new exit (range 11) 2423 | -8/Materials | Identified exit to Factory 2423 | -8/Materials | Entered Factory 2423 | -7/Factory | Evolved 2 slots: Propulsion x1, Utility x1 2444 | -7/Factory | Identified exit to Factory 2475 | -7/Factory | Found Prototype Launcher 2477 | -7/Factory | Found Prototype Launcher 2479 | -7/Factory | Found Prototype Launcher 2481 | -7/Factory | Found Prototype Launcher 2500 | -7/Factory | Identified Rocket Array (x4) 2528 | -7/Factory | Identified exit to Lower Caves 2556 | -7/Factory | Repaired Med. Storage Unit 2696 | -7/Factory | Fabricated Cesium-ion Thruster (x2) 2999 | -7/Factory | Entered another Factory area 2999 | -6/Factory | Evolved 2 slots: Power x1, Utility x1 3086 | -6/Factory | Repaired Lgt. Nuclear Core 3256 | -6/Factory | Build established: Hacker-Sprinter 3268 | -6/Factory | Discovered new exit (range 14) 3284 | -6/Factory | Identified exit to Factory 3284 | -6/Factory | Entered another Factory area 3284 | -5/Factory | Evolved 2 slots: Propulsion x2 3409 | -5/Factory | Identified exit to Upper Caves 3528 | -5/Factory | Discovered new exit (range 15) 3539 | -5/Factory | Identified exit to Factory 3539 | -5/Factory | Entered another Factory area 3539 | -4/Factory | Evolved 2 slots: Power x1, Utility x1 3578 | -4/Factory | Discovered new exit (range 9) 3629 | -4/Factory | Identified exit to Upper Caves 3630 | -4/Factory | Entered Upper Caves 3652 | -4/Upper Caves | Found Alien Artifact 3653 | -4/Upper Caves | Identified Dimensional Node Initializer 3653 | -4/Upper Caves | Initialized slip node 3688 | -4/Upper Caves | Lost 4 parts (1p3n) 3887 | -4/Upper Caves | Discovered new exit (range 10) 3909 | -4/Upper Caves | Entered another Upper Caves area 3918 | -4/Upper Caves | Spotted B-86 Titan 3926 | -4/Upper Caves | Discovered new exit (range 10) 3933 | -4/Upper Caves | Entered Research 3933 | -3/Research | Evolved 2 slots: Utility x2 3945 | -3/Research | Discovered new exit (range 7) 3979 | -3/Research | Found Prototype Device 3980 | -3/Research | Identified Exp. Thermal Defense Suite 4017 | -3/Research | Entered Armory 4139 | -3/Armory | Fabricated Cesium-ion Thruster (x2) 4308 | -3/Armory | Identified exit to Research 4380 | -3/Armory | Found Adv. Force Booster 4465 | -3/Armory | Entered Research 4465 | -2/Research | Evolved 2 slots: Propulsion x1, Utility x1 4495 | -2/Research | Lost 6 parts (5n1w) 4564 | -2/Research | Identified exit to Quarantine 4768 | -2/Research | Lost 6 parts (1p1n4u) 4785 | -2/Research | Core integrity fell below 50% 4812 | -2/Research | Core integrity fell below 20% 4828 | -2/Research | Destroyed by S-43 Plague with Heavy Machine Gun Last Messages --------------- R-10 Processor collects Lgt. Antimatter Reactor. R-10 Processor collects Xenon Bombardment Thruster. Mic. Antimatter Reactor destroyed. Hpw. Shock Rifle destroyed. Slammed into S-43 Plague. Destabilizing: Core damaged (-43). Slammed into S-43 Plague. System corrupted: Component data lost. S-43 Plague misfires. Slammed into S-43 Plague. Acquired 34 matter. Slammed into S-43 Plague. S-43 Plague destroyed. Acquired 40 matter. Acquired Hvy. Machine Gun. Imp. System Shield destroyed. R-10 Processor collects Corrupted Lgt. Antimatter Reactor. Hvy. Machine Gun destroyed. Map ----- +----------------------------------------------------+ | ?????????????????????????????????????????????????? | | ?????????????????????????????????????????????????? | | ?????????????????????????????????????????????????? | | ?????????????????????????????????????????????????? | | ?????????????????????????????????????????????????? | | ?????????????????????????????????????????????????? | | ?????????????????????????????????????????????????? | | ?????????????????????????????????????????????????? | | ??????????????????????????? ?????????????????????? | | ??????????????????????????? ?????????????????????? | | ??????????????????????????? ?????????????????????? | | ??????????????????????????? ?????????????????????? | | ??????????????????????????? ?????????############# | | ??????????????????????????? ?????????# | | ??????????????????????????? ?????????# ^ | | ??????????????????????????# #????????# | | ??????????????????????????# #????????# """"""" | | ??????????????????????????# #????????# """"""" | | ??????????????????????????# #????????# """"""" | | ????????????????????####### #?######?# | | ????????????????????# # #? #?# | | ????????????????????# R # # #?# | | ????????????????????#[ # # #?# ########### | | ????????????????????# Rs + / #?# #???????? | | ????????????????????#[ ss# # !#?# #???????# | | ????????????????????# R@# # #?# #???????# | | ????????????????????# # #?######?# #???????# | | ????????????????????####### #????????# #???????# | | ????????????????????# # #????????# #######?# | | ????????????????????# + #?######## # #?### | | ????????????????????# # #?# ?# # #???? | | ????????????????????# # #?# ?# # ##### | | ????????????????????# ?# #?# # # # ! | | ????????????????????# ?# #?# ? # # # | | ????????????????????####??# #?? ?? # + # "" | | ????????????????????????### ### ?? # # # "" | | ????????????????????????# = ##+##### ###+### "" | | ???????????????#####????# % # S | | ?>?????????????# H + "" | | ???????????????# ###### [ [ %# "" | | ???????????????# #????# #######+######## "" | | ???????????????# #????###+###?# ! #????# | | ???????????????# #????????????# #????# | | ???????????????# #????????????# %##???# !! | | ???????????????# #????????????# ##???# !! | | ################ #????????????# %##???# ### | | #?????############"##########?? | | ??# #?????# # #??? | | ??# ####### # #??? | | ??+ / # * #??? | +----------------------------------------------------+ Best States ------------- Heat Dissipation 105 Energy Generation 54 Energy Capacity 340 Matter Stores 300 Matter Capacity 300 Sight Range 20 Robot Scan Range 15 Terrain Scan Density 10 ECM Strength 1 Additional Mass Support 12 Armor Coverage 150 Propulsion Shielding 33 Evasion (%) 66 Targeting Accuracy 6 Target Analysis 8 Offensive Hacking 34 Defensive Hacking 12 Authchip Count 1 Item Schematics ----------------- Cesium-ion Thruster | -9/Materials | Scanalyzed Hacking Suite | -9/Materials | Scanalyzed Robot Schematics ------------------ None Fabricated ------------ Cesium-ion Thruster | x2 | -7/Factory Cesium-ion Thruster | x2 | -3/Armory Alien Tech Used ----------------- Dimensional Node Initializer Achievements -------------- A New Friend Alien Tech Dangerous Findings Hunted Respectable Loadout The More The Merrier Challenges ------------ None Game ------ Seed DisruptorDecoderDrivehammer Manual? 0 Play Time 02:11:56 Cumulative 18.6 hours Start 2024.10.03 @ 03:28:27 End 2024.10.03 @ 05:46:04 Sessions 1 Manual Loads 0 Difficulty Rogue Special Mode None Game No. 14 Rogue 14 Adventurer 0 Explorer 0 Win Type - Total 0 Types 0/0/0/0/0/0/0/0/0 Lore% 11 Gallery% 19 Achievement% 19 Wizard Run 0 Options --------- Layout 1 ASCII 0 Keyboard 0 Movement Mouse Keybinds 0 Fullscreen 1 Font 32/SmallcapsGlow Map View 50x35 Zoom Use 0% Tactical HUD 0 Map Filters NONE Filters NONE Steam 1 RUN: a77b3419-2cc6-47a3-a986-56f8cabafeba